Cogmind - Beta 13 @@@ ROGUE MODE // 2024.06.16 @ 14:19:55 Player: CONNOR_M Result: Destroyed by G-47 Trooper with Particle Gun Performance ------------- Evolutions (3) 1500 Regions Visited (6) 1200 Robots Destroyed (83) 415 Value Destroyed (2436) 2436 Prototype IDs (3) 60 Alien Tech Used (0) 0 Bonus (43) 43 TOTAL SCORE: 5654 Bonus ------- Follower Combat Kills 183 Friendly Fire -140 Cogmind --------- Core Integrity 0/700 Matter 63/300 Energy 100/100 System Corruption 2% Temperature Cool (18) Movement Core (1400) Ox27 Location -7/Factory Parts ------- > --- POWER (1) -------- (None) > --- PROPULSION (5) --- (None) > --- UTILITY (5) ------ Huge Storage Unit Target Analyzer Core Analyzer > --- WEAPON (2) ------- Scythe > --- INVENTORY (25) --- Nuclear Core Light Nuclear Core Light Nuclear Core Improved Deuterium Engine Light Treads Improved Heat Sink Coolant Injector Humpback Advanced Weight Redist. System Advanced Weight Redist. System Terrain Scan Processor Core Analyzer Weapon Cycler Reaction Control System Reaction Control System Drone Bay (2/2) Heavy Missile Launcher Heavy Missile Launcher Peak State ------------ > --- POWER ------------ Light Nuclear Core > --- PROPULSION ------- Armored Treads Armored Treads Armored Treads Armored Treads Armored Treads > --- UTILITY ---------- Improved Heat Sink Huge Storage Unit Target Analyzer Core Analyzer Drone Bay > --- WEAPON ----------- Heavy Particle Cannon Axe > --- INVENTORY -------- Nuclear Core Light Nuclear Core Improved Deuterium Engine Light Treads Light Treads Light Treads Coolant Injector Humpback Advanced Weight Redist. System Advanced Weight Redist. System Terrain Scan Processor Core Analyzer Weapon Cycler Reaction Control System Reaction Control System Hardened Medium Armor Plating Improved Light Armor Plating Drone Bay EM Shotgun Advanced Assault Cannon Heavy Missile Launcher Heavy Missile Launcher Scythe Scythe [Rating: 47] Favorites ----------- Power Light Nuclear Core Engine Subdweller Power Source Power Core Light Nuclear Core Propulsion Armored Treads Treads Armored Treads Leg Carbon-fiber Leg Wheel Subdweller Monowheel Utility Improved Heat Sink Device Improved Heat Sink Storage Small Storage Unit Processor Core Analyzer Protection Makeshift Light Armor Plating Weapon Heavy Particle Cannon Energy Gun Advanced Beam Rifle Energy Cannon Heavy Particle Cannon Ballistic Gun Assault Rifle Ballistic Cannon Advanced Assault Cannon Launcher Heavy Missile Launcher Impact Weapon Hammer Slashing Weapon Axe Build | -11 -10 -10 -10 -8 -8 -7 ------- Run | Yrd Mat Min Sub Mat Sto Fac Slots Evolved 6 | . . . . 4 . 2 Power . | . . . . . . . Propulsion 3 | . . . . 1 . 2 Utility 3 | . . . . 3 . . Weapon . | . . . . . . . Parts Attached 107 | 8 2 1 15 20 28 33 Power 12 | 1 1 . 5 2 1 2 Engine 9 | 1 1 . 4 2 . 1 Core 3 | . . . 1 . 1 1 Reactor . | . . . . . . . Propulsion 28 | 2 . . 4 8 10 4 Treads 16 | 2 . . . 5 5 4 Leg 6 | . . . . 3 3 . Wheel 6 | . . . 4 . 2 . Hover . | . . . . . . . Flight . | . . . . . . . Utility 31 | 3 . 1 1 7 5 14 Device 15 | 2 . 1 . 4 2 6 Storage 6 | 1 . . . 1 1 3 Processor 2 | . . . . . 1 1 Hackware . | . . . . . . . Protection 8 | . . . 1 2 1 4 Artifact . | . . . . . . . Weapon 36 | 2 1 . 5 3 12 13 Energy Gun 7 | 1 . . 1 2 1 2 Energy Cannon 10 | . . . 1 . 5 4 Ballistic Gun 6 | 1 1 . 3 . 1 . Ballistic Cannon 1 | . . . . . . 1 Launcher 3 | . . . . . . 3 Special Weapon . | . . . . . . . Impact Weapon 6 | . . . . 1 5 . Slashing Weapon 3 | . . . . . . 3 Piercing Weapon . | . . . . . . . Special Melee Weapon . | . . . . . . . Unidentified Prototypes 1 | . . . . 1 . . Parts Lost 24 | . 1 . 7 . 2 14 Power 3 | . 1 . 1 . . 1 Propulsion 8 | . . . 2 . 1 5 Utility 5 | . . . 1 . 1 3 Weapon 8 | . . . 3 . . 5 Highest Loss Streak 8 | . 1 . 3 . 2 8 To Critical Strikes . | . . . . . . . Average Slot Usage (%) 87 | . 88 100 89 79 83 90 Engine 6 | . 3 14 12 8 . 1 Core 3 | . . . 1 . 9 5 Treads 19 | . 28 28 11 21 6 36 Leg 2 | . . . . 2 9 . Wheel 4 | . . . 11 . 7 . Device 13 | . 14 14 7 17 19 12 Storage 10 | . 14 14 14 9 9 6 Processor 2 | . . . . . 3 10 Protection 3 | . . . 6 2 . 2 Energy Gun 5 | . 4 . 3 16 4 . Energy Cannon 4 | . . . 3 . 8 9 Ballistic Gun 8 | . 23 28 17 . 1 . Naked Turns . | . . . . . . . Heaviest Build 226 | 13 13 12 24 226 224 224 Greatest Support 109 | 40 40 40 40 69 69 109 Greatest Overweight (x) 72 | . . . 6 9 72 4 Average Overweight (x) 1 | . . . . 2 7 . Largest Inventory Capacity 35 | 8 8 8 8 35 35 35 Average Capacity 21 | 7 8 8 8 28 35 30 Most Carried 35 | 4 8 8 8 25 35 33 Average Carried 16 | 2 6 8 7 14 31 25 Final Capacity 35 | 8 8 8 8 35 35 25 Final Carried 29 | 3 8 8 7 25 29 19 Class Distribution -------------------- 45% | Mutant 43% | Hauler-Mutant 10% | Scavenger-Mutant Dominant Class ---------------- Mutant | -10/Materials Mutant | -10/Mines Mutant | -10/Subcaves Hauler-Mutant | -8/Materials Hauler-Mutant | -8/Storage Hauler-Mutant | -7/Factory Resources | -11 -10 -10 -10 -8 -8 -7 ----------- Run | Yrd Mat Min Sub Mat Sto Fac Matter Collected 1776 | 181 203 26 525 200 329 312 Remotely . | . . . . . . . Salvage Created 2903 | 76 203 26 381 653 966 598 Parts 184 | 11 11 3 30 31 52 46 Haulers Intercepted 2 | . . . . 2 . . Recyclers Shooed 5 | . . . . . 2 3 Parts Field Recycled . | . . . . . . . Retrieved Matter . | . . . . . . . Parts Self-Destructed 9 | . . . 9 . . . Prevented . | . . . . . . . Kills | -11 -10 -10 -10 -8 -8 -7 ------- Run | Yrd Mat Min Sub Mat Sto Fac Combat Hostiles Destroyed 56 | . 4 . 11 13 13 15 Guns 34 | . 4 . 11 12 6 1 Cannons 16 | . . . . . 7 9 AOE 4 | . . . . . . 4 Classes Destroyed 15 | 1 4 . 1 3 4 2 Worker 3 | . 1 . . . 1 1 Builder 7 | . . . . . 1 6 Tunneler 6 | 4 . 1 . . . 1 Hauler 2 | . . . . 2 . . Recycler 4 | . . . . . 3 1 Operator 2 | . 1 . . 1 . . Watcher 2 | . . . . . 2 . Swarmer 12 | . 1 . 4 4 . 3 Grunt 20 | . 3 . 1 6 6 4 Brawler 1 | . . . . 1 . . Sentry 12 | . . . . 2 6 4 Hunter 1 | . . . . . 1 . Programmer 3 | . . . . . . 3 Heavy 1 | . . . . . . 1 Subdweller 7 | . . . 7 . . . Best Kill Streak 9 | 1 1 1 3 3 5 9 Combat Bots Only 8 | . 1 . 3 3 2 8 Max Kills in Single Turn 3 | 1 1 1 2 1 1 3 Gunslinging 1 | . . . 1 . . . Exploded 2 | . . . . . . 2 Melee . | . . . . . . . Uniques/NPCs Destroyed . | . . . . . . . Combat | -11 -10 -10 -10 -8 -8 -7 -------- Run | Yrd Mat Min Sub Mat Sto Fac Hostile Shots Fired 615 | . 27 . 101 95 79 313 Missed 195 | . 5 . 35 25 22 108 Damage Taken 6304 | . 254 . 1061 897 961 3131 Core 1252 | . 17 . 224 118 191 702 Absorbed by Shields . | . . . . . . . Regen/Repaired (Parts) 175 | . . . . . . 175 Core Remaining (%) 48 | 100 . . 3 . 43 . Volleys Fired 260 | 6 23 2 71 46 65 47 Largest 2 | 2 2 2 2 2 2 2 Hottest 150 | 60 60 40 105 126 150 150 Shots Fired 419 | 11 38 4 114 71 102 79 Gun 288 | 11 38 4 109 71 48 7 Cannon 127 | . . . 5 . 54 68 Launcher 4 | . . . . . . 4 Special . | . . . . . . . Kinetic 175 | 6 33 4 80 . 21 31 Thermal 223 | . . . 34 71 81 37 Explosive 4 | . . . . . . 4 Electromagnetic 17 | 5 5 . . . . 7 Robot Hit Streak 17 | 3 5 2 16 11 11 17 Robot Miss Streak 5 | 1 3 1 3 3 4 5 Penetration Max 1 | . . . . . 1 . Secondary Targets 5 | . . . 3 2 . . Max Gunslinging Chain 1 | . . . 1 1 . . Shots Hit Robots 265 | 7 23 2 54 49 70 60 Core Hits 122 | 4 12 2 22 20 26 36 Critical Kills . | . . . . . . . Critical Parts Destroyed 3 | . . . 1 . 2 . Critical Strikes 11 | . . . 1 3 5 2 Burn 6 | . . . . 3 3 . Destroy 2 | . . . 1 . 1 . Blast 2 | . . . . . . 2 Smash 1 | . . . . . 1 . Melee Attacks 31 | . . . . 6 18 7 Impact 24 | . . . . 6 18 . Slashing 7 | . . . . . . 7 Piercing . | . . . . . . . Sneak Attacks 2 | . . . . 1 1 . Combat Hostiles . | . . . . . . . Follow-up Attacks . | . . . . . . . Damage Inflicted 6366 | 95 257 20 969 968 1642 2415 Guns 3059 | 95 255 20 969 900 735 85 Cannons 2170 | . . . . . 825 1345 Explosions 932 | . . . . . . 932 Melee 196 | . . . . 68 82 46 Ramming 9 | . 2 . . . . 7 Kinetic 1837 | 42 218 20 548 . 295 714 Thermal 3414 | . . . 421 900 1265 828 Explosive 735 | . . . . . . 735 Electromagnetic 175 | 53 37 . . . . 85 Impact 150 | . . . . 68 82 . Slashing 46 | . . . . . . 46 Piercing . | . . . . . . . Highest Corruption 2 | . . . . . . 2 Average Corruption 1 | . . . . . . 1 Corruption Purged . | . . . . . . . Corruption Blocked . | . . . . . . . Effects 5 | . . . . . . 5 Matter Fused 2 | . . . . . . 2 Parts Rejected 1 | . . . . . . 1 Data Loss (major) 1 | . . . . . . 1 Weapon Failures 1 | . . . . . . 1 Overload Shots . | . . . . . . . Overflow Damage 156 | . . . . 38 62 56 Projectiles 21 | . . . . . 10 11 Explosions 45 | . . . . . . 45 Melee 90 | . . . . 38 52 . Knockbacks 5 | . . . . . . 5 Impact . | . . . . . . . Kinetic 5 | . . . . . . 5 Secondary . | . . . . . . . Self-Inflicted Damage 30 | . . . . . . 30 Shots 1 | . . . . . . 1 Rammed 2 | . 1 . . . . 1 Targets Rammed 3 | . 1 . . . . 2 Kicked . | . . . . . . . Crushed 1 | . . . . . . 1 Highest Temperature 543 | . 63 . 269 367 543 189 Average Temperature 93 | . 38 . 73 101 123 62 Received Heat Transfer 2390 | . 129 . 596 378 450 837 Effects 9 | . . . . 3 6 . Shutdowns 1 | . . . . . 1 . Interference 3 | . . . . 3 . . Short Circuit 2 | . . . . . 2 . Damage (minor) 2 | . . . . . 2 . Damage (core) 1 | . . . . . 1 . Siege Activations . | . . . . . . . Robots Corrupted . | . . . . . . . Combat Hostiles . | . . . . . . . Parts Fried 8 | . . . . 1 7 . Impact Corruptions 4 | . . . . 1 3 . Robots Melted 2 | . . . . 1 . 1 Combat Hostiles 2 | . . . . 1 . 1 Parts Melted 12 | . . . 2 6 3 1 Heat Transferred 5905 | . . . 525 1998 2257 1125 Parts Sabotaged . | . . . . . . . Parts Stolen . | . . . . . . . Parts Stripped . | . . . . . . . Power Chain Reactions 2 | . . . . . . 2 Alert | -11 -10 -10 -10 -8 -8 -7 ------- Run | Yrd Mat Min Sub Mat Sto Fac Peak Influence 384 | 20 183 44 . 384 311 277 Initial 198 | . 13 39 . 198 36 90 Average 107 | 9 104 30 . 153 135 68 Maximum Alert Level 1 | . . . . 1 1 1 Low Security (%) 85 | 100 100 100 . 64 86 94 Level 1 14 | . . . . 35 13 5 Level 2 . | . . . . . . . Level 3 . | . . . . . . . Level 4 . | . . . . . . . Level 5 . | . . . . . . . High Security . | . . . . . . . Max Security . | . . . . . . . Squads Dispatched 15 | . 2 . . 1 3 9 Investigation 2 | . 1 . . . . 1 Extermination 2 | . . . . . . 2 Reinforcement 6 | . 1 . . 1 2 2 Assault 1 | . . . . . . 1 Garrison 4 | . . . . . 1 3 Intercept . | . . . . . . . Searches Triggered . | . . . . . . . Construction Impeded 1 | . . . . . . 1 Haulers Reinforced . | . . . . . . . Active Scanning Responses . | . . . . . . . Cargo Convoy Interrupts 1 | . . . . . . 1 Stealth | -11 -10 -10 -10 -8 -8 -7 --------- Run | Yrd Mat Min Sub Mat Sto Fac Distress Signals 12 | . 2 . . 4 3 3 Communications Jammed . | . . . . . . . Distress Signals . | . . . . . . . Times Spotted 127 | . 17 . 31 27 21 31 Peak Tracking Total 9 | . 4 . 6 4 5 9 Tactical Retreats 14 | . 4 . 6 . 2 2 Traps | -11 -10 -10 -10 -8 -8 -7 ------- Run | Yrd Mat Min Sub Mat Sto Fac Traps Triggered 2 | . 1 . . . 1 . Indirectly . | . . . . . . . Trap Hack Attempts . | . . . . . . . Triggered . | . . . . . . . Disarmed . | . . . . . . . Reprogrammed . | . . . . . . . Reused . | . . . . . . . Traps Extracted . | . . . . . . . Installed . | . . . . . . . Triggered 2 | . . . . . . 2 Machines | -11 -10 -10 -10 -8 -8 -7 ---------- Run | Yrd Mat Min Sub Mat Sto Fac Machines Disabled 3 | . 1 . 1 . . 1 Max in Single Turn 1 | . 1 . 1 . . 1 Garrison Access 1 | . . . . . . 1 Machines Repaired . | . . . . . . . Machines Dismantled . | . . . . . . . Machines Sabotaged . | . . . . . . . Overloaded Fab Kills . | . . . . . . . Hacking | -11 -10 -10 -10 -8 -8 -7 --------- Run | Yrd Mat Min Sub Mat Sto Fac Machines Accessed 12 | . 3 . 1 1 4 3 Terminals 9 | . 3 . . 1 4 1 Fabricators . | . . . . . . . Repair Stations 1 | . . . . . . 1 Recycling Units . | . . . . . . . Scanalyzers 1 | . . . . . . 1 Garrison Access . | . . . . . . . Total Hacks 31 | . 13 . 3 3 7 5 Successful 14 | . 4 . 3 2 2 3 Failed 17 | . 9 . . 1 5 2 Catastrophic 4 | . 1 . . 1 1 1 Database Lockouts . | . . . . . . . Manual 14 | . 7 . . 3 3 1 Terminals 25 | . 13 . . 3 7 2 Fabricators . | . . . . . . . Repair Stations 2 | . . . . . . 2 Recycling Units . | . . . . . . . Scanalyzers 1 | . . . . . . 1 Garrison Access . | . . . . . . . Terminal Hacks 11 | . 3 . 3 2 2 1 Record 3 | . . . 3 . . . Prototype ID Bank 1 | . 1 . . . . . Open Door 1 | . . . . . 1 . Branch Access Points 1 | . . . . 1 . . Terminal Index 1 | . . . . 1 . . Locate Traps 1 | . 1 . . . . . Hauler Manifests 1 | . 1 . . . . . Zone Layout 2 | . . . . . 1 1 Fabricator Hacks . | . . . . . . . Repair Station Hacks 2 | . . . . . . 2 Scan Component 1 | . . . . . . 1 Repair 1 | . . . . . . 1 Recycling Unit Hacks . | . . . . . . . Scanalyzer . | . . . . . . . Garrison Access Hacks . | . . . . . . . Unauthorized Hacks 1 | . 1 . . . . . Terminals 1 | . 1 . . . . . Assimilate 1 | . 1 . . . . . Fabricators . | . . . . . . . Repair Stations . | . . . . . . . Recycling Units . | . . . . . . . Scanalyzers . | . . . . . . . Garrison Access . | . . . . . . . Data Cores Recovered . | . . . . . . . Used . | . . . . . . . Hacking Detections 9 | . 3 . . . 3 3 Full Trace Events 1 | . 1 . . . . . Feedback Events . | . . . . . . . Feedback Blocked . | . . . . . . . Robot Schematics Acquired . | . . . . . . . Robots Built . | . . . . . . . Authchips . | . . . . . . . Time . | . . . . . . . Total Robot Build Rating . | . . . . . . . Part Schematics Acquired . | . . . . . . . Parts Built . | . . . . . . . Authchips . | . . . . . . . Time . | . . . . . . . Total Part Build Rating . | . . . . . . . Parts Repaired 1 | . . . . . . 1 Time 26 | . . . . . . 26 Parts Recycled . | . . . . . . . Recycled Matter . | . . . . . . . Retrieved Matter . | . . . . . . . Retrieved Components . | . . . . . . . Parts Scanalyzed . | . . . . . . . Part Schematics Acquired . | . . . . . . . Parts Damaged . | . . . . . . . Bothacking | -11 -10 -10 -10 -8 -8 -7 ------------ Run | Yrd Mat Min Sub Mat Sto Fac Used RIF Installer . | . . . . . . . Robots Hacked . | . . . . . . . Non-combat . | . . . . . . . Combat . | . . . . . . . Robot Hacks Applied . | . . . . . . . Relay Couplers Released 1 | . . . . . . 1 Machine Destruction 1 | . . . . . . 1 Fabnet Peak Effective % . | . . . . . . . Robots Rewired . | . . . . . . . Allies Hacked . | . . . . . . . Hacks Repelled . | . . . . . . . Allies | -11 -10 -10 -10 -8 -8 -7 -------- Run | Yrd Mat Min Sub Mat Sto Fac Total Allies 3 | . . 3 . . . . Largest Group 3 | . . 3 3 . . . Highest-Rated Group 40 | . . 40 40 . . . Highest-Rated Ally 16 | . . 16 16 . . . Total Orders 7 | . . . . . 2 5 EXPLORE 6 | . . . . . 2 4 RETURN 1 | . . . . . . 1 Ally Attacks 34 | . . . 34 . . . Total Damage 461 | . . . 461 . . . Kills 7 | . . . 7 . . . Allies Corrupted . | . . . . . . . Allies Melted . | . . . . . . . Intel | -11 -10 -10 -10 -8 -8 -7 ------- Run | Yrd Mat Min Sub Mat Sto Fac Robot Analysis Total . | . . . . . . . Derelict Logs Recovered . | . . . . . . . Drone Launches 9 | . . . . . 3 6 Drone Recoveries 4 | . . . . . 1 3 Exploration | -11 -10 -10 -10 -8 -8 -7 ------------- Run | Yrd Mat Min Sub Mat Sto Fac Turns Passed 9135 | 186 552 553 2630 1850 1567 1797 Spaces Moved 3758 | 101 296 212 1719 520 311 599 Core 237 | 9 . . 137 79 12 . Treads 2258 | 92 296 212 618 361 80 599 Legs 131 | . . . . 80 51 . Wheels 1132 | . . . 964 . 168 . Hover . | . . . . . . . Flight . | . . . . . . . Fastest Speed 50 | 50 160 160 110 100 185 166 Average Speed 204 | 150 160 160 140 317 402 234 Slowest Speed 3650 | 160 160 160 350 500 3650 480 Overloaded Moves . | . . . . . . . Propulsion Burnouts . | . . . . . . . Robots Hopped . | . . . . . . . Cave-ins Triggered . | . . . . . . . Exploration Rate (%) 48 | 7 55 56 88 31 78 26 Regions Visited 6 Branch Regions 3 Pre-discovered Areas . | . . . . . . . Known Exits Taken 1 | . . . . 1 . . Unknown Exits Taken 5 | 1 1 1 1 . 1 . Scrap Searched 5 | . . . 5 . . . Spaces Dug 16 | . . . . 1 10 5 Terrain Destroyed 67 | . . . . 1 30 36 Melee 16 | . . . . 1 10 5 Projectile 22 | . . . . . 20 2 AOE 29 | . . . . . . 29 Terrain Rammed . | . . . . . . . Walls Destroyed . | . . . . . . . Machines Disabled . | . . . . . . . Actions | -11 -10 -10 -10 -8 -8 -7 --------- Run | Yrd Mat Min Sub Mat Sto Fac Total 4731 | 121 337 422 1830 640 493 888 Wait 411 | 2 9 208 . 8 48 136 Move 3752 | 100 295 211 1718 519 310 599 Hop . | . . . . . . . Pick Up 97 | 5 6 . 9 25 10 42 Fast Attach 32 | 5 1 . 8 11 5 2 Attach 40 | 2 . . 5 8 8 17 Detach 14 | . . . . 3 6 5 Swap 35 | 1 1 1 2 1 15 14 Drop 56 | . 1 . 17 13 8 17 Fire 260 | 6 23 2 71 46 65 47 Melee 31 | . . . . 6 18 7 Ram 1 | . . . . . . 1 Kick . | . . . . . . . Crush 2 | . 1 . . . . 1 Escape Stasis . | . . . . . . . Rewire . | . . . . . . . Trap . | . . . . . . . Miscellaneous . | . . . . . . . Route ------- -11/Scrapyard -10/Materials (discovered 2 exits: [*Mat] / [*Min]) -10/Mines -10/Subcaves (discovered 2 exits: *Mat x2) -8/Materials (discovered 2 exits: *Fac / *Sto) -8/Storage -7/Factory (discovered 2 exits: [*Fac] / [*Low]) History --------- Turn | Location | Event 7 | -11/Scrapyard | Discovered new exit (range 16) 187 | -11/Scrapyard | Entered Materials 302 | -10/Materials | Build established: Mutant 372 | -10/Materials | Discovered new exit (range 16) 486 | -10/Materials | Discovered new exit (range 10) 739 | -10/Materials | Entered Mines 760 | -10/Mines | Met a Derelict bent on vengeance 807 | -10/Mines | Assisted by bots powering up and referring to "LRC-V3" 1284 | -10/Mines | Discovered new exit (range 5) 1292 | -10/Mines | Entered Subcaves 1292 | -10/Subcaves | Accompanied by 3 allies 1543 | -10/Subcaves | Shifting Twisted Machinery released Sub. Power Source 2326 | -10/Subcaves | Discovered new exit (range 9) 2344 | -10/Subcaves | Shifting Twisted Machinery released Flamer 2349 | -10/Subcaves | Disturbed a concealed Subdweller 2507 | -10/Subcaves | Visited Clippyterm 2511 | -10/Subcaves | Learned Factory trap positions 2544 | -10/Subcaves | Disturbed a concealed Subdweller 2626 | -10/Subcaves | Core integrity fell below 50% 2651 | -10/Subcaves | Lost 3 parts (1p1n1w) 2677 | -10/Subcaves | Shifting Twisted Machinery released Shrapnel Trap 2743 | -10/Subcaves | Shifting Twisted Machinery released Sub. Power Source 2754 | -10/Subcaves | Ambushed by Subdwellers from Twisted Machinery 2807 | -10/Subcaves | Discovered new exit (range 8) 3344 | -10/Subcaves | Build established: Scavenger-Mutant 3558 | -10/Subcaves | Core integrity fell below 20% 3739 | -10/Subcaves | Build established: Mutant 3922 | -10/Subcaves | Entered Materials 3922 | -8/Materials | Evolved 4 slots: Propulsion x1, Utility x3 4344 | -8/Materials | Build established: Scavenger-Mutant 4676 | -8/Materials | Build established: Hauler-Mutant 5309 | -8/Materials | Identified exit to Storage 5654 | -8/Materials | Discovered new exit (range 4) 5772 | -8/Materials | Entered Storage 6265 | -8/Storage | Garrison activated, responded to threat 6677 | -8/Storage | Discovered new exit (range 20) 6852 | -8/Storage | Core integrity fell below 50% 7339 | -8/Storage | Entered Factory 7339 | -7/Factory | Evolved 2 slots: Propulsion x2 7340 | -7/Factory | Loaded intel: 99 trap records 7822 | -7/Factory | Repaired Humpback 7964 | -7/Factory | Discovered new exit (range 27) 8360 | -7/Factory | Discovered new exit (range 32) 8437 | -7/Factory | Cargo convoy interrupted 8745 | -7/Factory | Build established: Mutant 8891 | -7/Factory | Garrison activated, responded to threat 8960 | -7/Factory | Destroyed 8 combat bots 8965 | -7/Factory | Lost 4 parts (2n1u1w) 9125 | -7/Factory | Core integrity fell below 50% 9134 | -7/Factory | Core integrity fell below 20% 9136 | -7/Factory | Destroyed by G-47 Trooper with Particle Gun Last Messages --------------- 09114_ U-05 Engineer lays Concrete. 09115_ U-05 Engineer builds a Wall. 09115_ Lgt. Treads severed. 09116_ K-01 Serf collects debris. 09118_ Adv. Assault Cannon destroyed. 09118_ U-05 Engineer lays Concrete. 09119_ K-01 Serf collects debris. 09119_ U-05 Engineer lays Concrete. 09120_ Lgt. Nuclear Core destroyed. 09120_ R-06 Scavenger collects Corrupted Imp. Heat Sink. 09121_ U-05 Engineer lays Concrete. 09122_ Scythe severed. 09122_ Slammed into L-41 Fighter. 09123_ U-05 Engineer lays Concrete. 09128_ U-05 Engineer builds a Wall. 09131_ Kinecellerator destroyed. 09131_ G-47 Trooper destroyed. 09134_ Critical hit (Burn: +37). 09135_ System corrupted: Matter fused (-8). 09135_ K-01 Serf collects debris. Map ----- +----------------------------------------------------+ | ???????????# [ # #????????????????#" | | ???????????# """""" * # % #??????###???????## | | ???????????# """"" % #?????############# | | ???????????? """"" #????## ! ! | | ?????????????""""" =! #????#" | | ???????????# % *= !% #????## " " " " " | | ?????????#####+########### =%| #?????# " " " " " | | ??????? ! #?????# " " " " " | | ??????? * #?????# " " " " " | | ?????????"" """" """" !% #?????# " " " " " | | ??????????????"" """" = #?????# " " " " " | | ???????????????" """" % #????## " " " " " | | ???????????????" """" u[#######????## " " " " " | | ??????????????"" """" " ! #?????## " " " " " | | ????????????"""" """" # #??????# | | ????????""" """" """" # ! #??????############# | | ?????? u# ###############????? | | ?????? ##+##### ! ! #????? | | ?????? a u ^ + #????? | | ???????############ # " " " " " /#????? | | ??????????????????# # " " " " " #????? | | ??????????????????# u[[ *! # " " " " " #????? | | ??????????????????# [[[ *!k # " " " " " #????? | | ??????????????????# [[g=!% + " " " " " #???## | | ??????????????????# g%/ # " " " " " #???#T | | ??????????????????# l@= # " " " " " ##### | | ??????????????????# g ### ## " " " " " + | | ??????????????????# "## ## " " " " " ###### | | ??????????????????# "## ## #????? | | ??????????????????# ### ###############????? | | ??????????????????# #?# #??????????????????? | | ??????????????????# #? ????????????????### | | ??????????????????# #? ! ################T" | | ??????????????????# #? # " | | ??????????????????# #? | | ?????????????????? #? ## | | ????????????????? #??? ???########### #? | | ???????????????? #?????????????????# #? | | ??????????????? #?????????????????#^^^ #? | | ?????????????? #?????????????????#^ ^^ #? | | ?????????????###### #????????????###### #? | | ??????????????????# ?????????????"""" # | | ??????????????????# ????????????""T"" # | | ??????????????????? ????????# + | | ????????????????????? ????????# """ """ # | | ??????????????????????????????????? """ """ # | | ????????????????????????????????????""" """ ###? | | ????????????????????????????????????? ???? | | ????????????????????????????????????? ???? | | ???????????????????????????????????? ######+???? | +----------------------------------------------------+ Best States ------------- Heat Dissipation 48 Energy Generation 16 Energy Capacity 290 Matter Stores 300 Matter Capacity 300 Sight Range 21 Terrain Scan Range 16 Terrain Scan Density 10 Additional Mass Support 9 Armor Coverage 225 Evasion (%) 55 Target Analysis 5 Core Analysis 6 Recoil Reduction 5 Kinecelleration 30 Item Schematics ----------------- None Robot Schematics ------------------ None Fabricated ------------ Nothing Alien Tech Used ----------------- None Achievements -------------- None Challenges ------------ None Game ------ Seed CloakLegSuperbattery Manual? 0 Play Time 01:19:02 Cumulative 29.3 hours Start 2024.06.05 @ 21:03:28 End 2024.06.16 @ 14:19:55 Sessions 13 Manual Loads 0 Difficulty Rogue Special Mode None Game No. 53 Rogue 53 Adventurer 0 Explorer 0 Win Type - Total 0 Types 0/0/0/0/0/0/0/0/0 Lore% 20 Gallery% 21 Achievement% 26 Wizard Run 0 Options --------- Layout 0 ASCII 0 Keyboard 0 Movement Arrows Keybinds 0 Fullscreen 2 Font 18/SmallcapsGlow Map View 76x50 Zoom Use 0% Tactical HUD 1 Map Filters NONE Filters NONE Steam 1 RUN: 3a9932a1-8b0a-4c62-9584-6dcc5739a5ca